bitfinex/quotes_ETHUSD_20251004
["timestamp","ask_amount","ask_price","bid_price","bid_amount"]
[1759558439145,0.66801471,4506.7,4506.6,2.944]
[1759558439347,0.002,4506.7,4506.6,2.944]
[1759558442450,2.22091849,4506.7,4506.6,2.944]
[1759558443052,0.002,4506.7,4506.6,2.944]
[1759558443428,2.22091849,4506.7,4506.6,2.5]
[1759558444975,2.88686962,4506.7,4506.6,2.5]
[1759558447572,0.66795113,4506.7,4506.6,2.5]
[1759558448470,2.88686962,4506.7,4506.6,2.5]
[1759558448677,0.66795113,4506.7,4506.6,2.5]
[1759558450583,0.66795113,4506.7,4506.6,2.944]
[1759558451289,0.66795113,4506.7,4506.6,3.24982]
[1759558451582,0.002,4506.7,4506.6,6.28632284]
[1759558452080,0.002,4506.7,4506.6,12.73720784]
[1759558452489,0.002,4506.8,4506.6,12.73720784]
[1759558452490,0.002,4506.8,4506.7,2.4]
[1759558452780,0.002,4507.0,4506.7,2.4]
[1759558452781,0.002,4507.0,4506.8,2.4]
[1759558452990,0.002,4507.0,4506.9,2.6102]
[1759558453185,0.002,4507.0,4506.9,3.0542]
[1759558455168,0.002,4507.0,4506.9,3.38647911]
[1759558457909,0.002,4507.0,4506.9,14.16122204]
[1759558458095,0.002,4507.2,4507.0,13.79969884]
[1759558458276,0.002,4507.2,4507.1,7.88497821]
[1759558458475,0.002,4507.2,4507.1,9.09250384]
[1759558458697,0.002,4507.2,4507.1,9.45548884]
[1759558458889,0.002,4507.2,4507.1,4.71155897]
[1759558459083,0.002,4507.2,4507.1,3.24722373]
[1759558459379,0.002,4507.2,4507.1,3.26941094]
[1759558460003,0.002,4507.2,4507.1,2.96518721]
[1759558464318,0.002,4507.2,4507.1,2.499]
[1759558465798,0.002,4507.2,4507.1,3.60550284]
[1759558466000,0.002,4507.2,4507.1,4.22605042]
[1759558466391,0.002,4507.2,4507.1,3.75605042]
[1759558467025,0.002,4507.2,4507.1,9.18324263]
[1759558467222,0.002,4507.2,4507.1,9.16105542]
[1759558467585,0.002,4507.2,4507.1,9.39499542]
[1759558468032,0.002,4507.2,4507.1,8.66808042]
[1759558468231,0.002,4507.2,4507.1,6.62605042]
[1759558468416,0.002,4507.2,4507.1,5.98954758]
[1759558468604,0.002,4507.2,4507.1,10.25566058]
[1759558468804,0.002,4507.2,4507.1,9.09055558]
[1759558469215,0.002,4507.2,4507.1,5.98954758]
[1759558469409,0.002,4507.2,4507.1,5.51954758]
[1759558475510,0.453,4507.2,4507.1,5.51954758]
[1759558475845,0.453,4507.2,4507.1,4.899]
[1759558478118,0.002,4507.2,4507.1,4.899]
[1759558484320,0.453,4507.2,4507.1,4.899]
[1759558485948,0.002,4507.2,4507.1,4.899]
[1759558488060,0.002,4507.2,4507.1,5.99370284]
[1759558488262,0.002,4507.2,4507.1,6.72378739]
[1759558491661,0.002,4507.2,4507.1,6.26558739]
[1759558491989,0.002,4507.2,4507.1,6.73478739]
[1759558492360,0.002,4507.2,4507.1,6.26558739]
[1759558492563,0.002,4507.2,4507.1,5.96136366]
[1759558493891,0.002,4507.2,4507.1,5.62908455]
[1759558494052,0.4516,4507.2,4507.1,5.62908455]
[1759558494252,0.002,4507.2,4507.1,5.62908455]
[1759558495167,0.4516,4507.2,4507.1,5.62908455]
[1759558495970,0.002,4507.2,4507.1,5.62908455]
[1759558497704,0.4516,4507.2,4507.1,5.62908455]
[1759558500474,0.002,4507.2,4507.1,3.13008455]
[1759558500700,0.4516,4507.2,4507.1,5.62808455]
[1759558500921,0.4516,4507.2,4507.1,4.898]
[1759558512106,0.002,4507.2,4507.1,4.898]
[1759558516158,0.002,4507.2,4507.1,6.00370284]
[1759558517631,0.002,4507.9,4507.3,0.6336]
[1759558517837,0.002,4508.2,4507.6,1.19194393]
[1759558518065,0.002,4508.2,4507.8,2.5112]
[1759558518249,0.002,4508.2,4507.9,5.25246238]
[1759558518452,0.002,4508.2,4507.9,5.69947911]
[1759558518771,0.002,4508.2,4507.9,6.43016379]
[1759558518976,0.002,4508.2,4507.9,6.73438752]
[1759558519346,0.002,4508.2,4508.0,2.70422373]
[1759558519541,0.002,4508.2,4508.1,5.3636614]
[1759558519886,0.01,4508.9,4508.2,2.4]
[1759558520176,0.01,4508.9,4508.3,11.32321093]
[1759558520384,0.01,4508.9,4508.3,10.99837235]
[1759558520599,0.01,4508.9,4508.4,2.4]
[1759558520893,0.01,4508.9,4508.8,0.1112]
[1759558521090,0.01,4508.9,4508.8,7.27724885]
[1759558521240,0.01,4508.9,4508.8,9.68644272]
[1759558521867,0.01,4508.9,4508.8,11.76231472]
[1759558522239,0.01,4508.9,4508.8,11.87082247]
[1759558522884,0.01,4508.9,4508.8,15.32618547]
[1759558523343,0.01,4508.9,4508.8,15.95978547]
[1759558523779,0.01,4508.9,4508.8,7.83491547]
[1759558524776,0.01,4508.9,4508.8,17.91416747]
[1759558525148,0.01,4508.9,4508.8,17.66143047]
[1759558525580,0.01,4508.9,4508.8,16.97439647]
[1759558525999,0.01,4508.9,4508.8,16.82902747]
[1759558527270,0.01,4508.9,4508.8,16.10359347]
[1759558527474,0.01,4508.9,4508.8,7.39911547]
[1759558528416,0.01,4508.9,4508.8,6.35178399]
[1759558528561,0.484,4508.9,4508.8,6.35178399]
[1759558528764,0.01,4508.9,4508.8,6.35178399]
[1759558532016,0.01,4508.9,4508.8,6.01950488]
[1759558532302,0.01,4508.9,4508.8,6.35178399]
[1759558533437,0.4839,4508.9,4508.8,6.35178399]
[1759558533943,0.4839,4508.9,4508.8,6.01950488]
[1759558534234,0.4839,4508.9,4508.8,5.0082]
[1759558540399,0.4859,4508.9,4508.8,5.0082]
[1759558540612,0.012,4508.9,4508.8,22.71328884]
[1759558540813,0.1112,4510.6,4508.9,2.4]
[1759558541060,0.002,4509.4,4509.1,2.4]
[1759558541355,0.002,4509.4,4509.3,2.4]
[1759558541556,0.002,4509.4,4509.3,21.36388182]
[1759558541742,0.012,4509.9,4509.5,2.4]
[1759558542057,0.012,4509.9,4509.6,16.06883975]
[1759558542262,0.01,4510.9,4509.7,13.89327]
[1759558542418,0.01,4510.9,4509.8,21.68130284]
[1759558542621,0.4739,4512.3,4510.1,0.6336]
[1759558542842,0.4739,4512.3,4510.5,0.6336]
[1759558543155,0.4739,4512.3,4510.7,3.0336]
[1759558543452,0.4739,4512.3,4510.9,3.0336]
[1759558543758,0.4739,4512.3,4511.1,2.4]
[1759558543978,0.4739,4512.3,4511.2,4.43697268]
[1759558544113,0.4839,4512.9,4511.1,2.73227911]
[1759558544453,0.4739,4512.4,4511.3,2.4]
[1759558544640,0.4739,4512.1,4511.4,0.33227911]
[1759558544959,0.01,4512.9,4511.5,2.497]
[1759558544960,2.21650426,4511.7,4511.5,2.497]
[1759558545261,2.22636448,4511.9,4511.6,2.497]
[1759558545557,2.21645942,4511.7,4511.6,2.497]
[1759558545716,2.69035942,4511.7,4511.6,2.497]
[1759558546156,0.01,4511.9,4511.6,2.497]
[1759558546329,0.01,4511.9,4511.7,0.32638832]
[1759558546528,0.01,4511.9,4511.8,2.497]
[1759558546849,0.01,4511.9,4511.8,3.13350284]
[1759558547052,0.01,4511.9,4511.8,3.61916694]
[1759558547255,0.00035,4512.9,4511.8,25.53410553]
[1759558547461,0.003,4513.4,4512.5,0.6336]
[1759558547664,0.003,4513.4,4512.9,1.19194393]
[1759558547835,0.003,4513.4,4513.0,2.497]
[1759558548019,0.003,4513.4,4513.2,2.4]
[1759558548250,0.003,4513.4,4513.3,2.497]
[1759558548455,0.003,4513.4,4513.0,0.33227911]
[1759558548656,0.003,4513.4,4513.1,4.897]
[1759558548975,0.003,4513.4,4513.3,0.08863981]
[1759558549500,0.003,4513.4,4513.3,5.22927911]
[1759558549700,0.003,4513.4,4513.3,5.75220702]
[1759558549907,0.003,4513.4,4513.3,5.41992791]
[1759558550404,0.003,4513.4,4513.3,4.897]
[1759558551005,2.21862458,4513.4,4513.3,0.1104]
[1759558551206,2.67132458,4513.4,4513.3,0.1104]
[1759558551512,2.67132458,4513.4,4513.3,2.6064]
[1759558551807,0.003,4513.4,4513.3,2.6064]
[1759558553607,2.21862458,4513.4,4513.3,2.6064]
[1759558554264,2.67132458,4513.4,4513.3,2.6064]
[1759558557978,2.21862458,4513.4,4513.3,2.6064]
[1759558558485,2.22062458,4513.4,4513.3,2.6064]
[1759558561197,2.67332458,4513.4,4513.3,2.6064]
[1759558561370,0.005,4513.4,4513.3,2.6064]
[1759558561572,0.005,4513.4,4513.3,22.4146294]
[1759558561777,0.005,4513.4,4513.3,14.62616136]
[1759558561961,0.005,4513.4,4513.3,12.13016136]
[1759558562296,0.005,4513.4,4513.3,12.35037051]
[1759558562475,0.005,4513.4,4513.3,15.29671151]
[1759558562874,0.005,4513.4,4513.3,14.9644324]
[1759558563492,0.005,4513.4,4513.3,20.93820851]
[1759558564197,0.005,4513.4,4513.3,18.44320851]
[1759558564367,0.005,4513.4,4513.3,25.3178261]
[1759558564571,0.005,4513.4,4513.3,26.4109621]
[1759558564987,0.005,4513.4,4513.3,26.0728721]
[1759558565189,0.005,4513.4,4513.3,25.74059299]
[1759558565666,0.005,4513.4,4513.3,25.92233699]
[1759558566474,0.005,4513.4,4513.3,24.52286099]
[1759558566813,0.005,4513.4,4513.3,16.5621551]
[1759558566970,0.005,4513.4,4513.3,17.7440421]
[1759558567614,0.005,4513.4,4513.3,14.00222299]
[1759558568021,0.005,4513.4,4513.3,14.3345021]
[1759558568199,0.005,4513.4,4513.3,14.00222299]
[1759558568692,0.005,4513.4,4513.3,9.19194199]
[1759558569015,0.005,4513.4,4513.3,9.428665]
[1759558569572,0.005,4513.4,4513.3,10.382103]
[1759558569915,0.005,4513.4,4513.3,9.560696]
[1759558570407,0.005,4513.4,4513.3,7.3074]
[1759558570777,0.005,4513.4,4513.3,11.215744]
[1759558570977,0.005,4513.4,4513.3,12.3374184]
[1759558571674,0.005,4513.4,4513.3,17.3801434]
[1759558571874,0.005,4513.4,4513.3,13.9485144]
[1759558572304,0.005,4513.4,4513.3,11.3232334]
[1759558572718,0.005,4513.4,4513.3,14.9135534]
[1759558572874,0.005,4513.4,4513.3,13.5135534]
[1759558573811,0.005,4513.4,4513.3,12.8260954]
[1759558574714,0.005,4513.4,4513.3,8.4290744]
[1759558574916,0.005,4513.4,4513.3,13.4899924]
[1759558576008,0.005,4513.4,4513.3,13.1699654]
[1759558576210,0.005,4513.4,4513.3,3.6320744]
[1759558576410,0.4577,4513.4,4513.3,5.0044]
[1759558576602,0.005,4513.4,4513.3,5.0044]
[1759558577026,0.005,4513.4,4513.3,4.590427]
[1759558577332,0.005,4513.4,4513.3,7.91152572]
[1759558578203,0.005,4513.4,4513.3,7.92774272]
[1759558578408,0.005,4513.4,4513.3,9.07001139]
[1759558578885,0.005,4513.4,4513.3,6.92902939]
[1759558579722,2.67332458,4513.4,4513.3,0.1104]
[1759558580022,2.67332458,4513.4,4513.3,2.6044]
[1759558580219,2.67332458,4513.4,4513.3,0.1104]
[1759558580518,2.67332458,4513.4,4513.3,2.6084]
[1759558580700,3.16281135,4513.4,4513.3,2.498]
[1759558582287,2.21572276,4513.2,4513.1,0.1114]
[1759558582486,2.21572276,4513.2,4513.1,2.6094]
[1759558582810,2.66662276,4513.2,4513.1,2.6094]
[1759558584081,2.66662276,4513.2,4513.1,0.1114]
[1759558584419,2.66662276,4513.2,4513.1,0.001]
[1759558584420,3.20460108,4513.2,4513.1,0.001]
[1759558584820,2.21591916,4512.8,4512.7,0.001]
[1759558585280,2.66681916,4512.8,4512.7,0.001]
[1759558585711,2.21591916,4512.8,4512.7,0.001]
[1759558585915,2.66681916,4512.8,4512.7,0.001]
[1759558586115,2.66681916,4512.8,4512.7,1.145]
[1759558586916,2.21591916,4512.8,4512.7,1.145]
[1759558587111,2.67153358,4513.4,4512.7,1.145]
[1759558587112,0.005,4513.4,4512.7,1.145]
[1759558587357,0.005,4513.4,4512.8,0.02215919]
[1759558587555,0.005,4513.4,4512.8,0.18192511]
[1759558588550,0.4452,4513.4,4512.8,0.15976592]
[1759558588726,2.21591916,4512.8,4512.7,0.001]
[1759558588937,0.4452,4513.4,4512.7,2.502]
[1759558588938,2.21590393,4512.9,4512.7,2.502]
[1759558589134,2.2157219,4513.3,4512.7,2.502]
[1759558589486,0.005,4513.4,4512.8,2.42215919]
[1759558589618,2.21569057,4513.3,4512.8,2.4]
[1759558590039,0.4402,4513.2,4512.8,2.4]
[1759558590235,0.005,4513.4,4512.8,2.4]
[1759558590451,2.21582238,4513.0,4512.8,2.4]
[1759558590649,2.21587006,4512.9,4512.8,2.8902]
[1759558590956,2.21582692,4513.0,4512.8,2.8902]
[1759558591140,2.65588659,4513.3,4512.8,2.4]
[1759558591141,2.21572276,4513.2,4512.8,2.4]
[1759558591345,2.21587006,4512.9,4512.8,2.4]
[1759558592472,2.21587006,4512.9,4512.8,2.5]
[1759558592754,2.65607006,4512.9,4512.8,2.5]
[1759558593713,2.21587006,4512.9,4512.8,2.5]
[1759558594860,2.21587006,4512.9,4512.8,2.6104]
[1759558596556,2.65607006,4512.9,4512.8,0.1104]
[1759558596760,2.65607006,4512.9,4512.8,2.6104]
[1759558597765,3.14325579,4512.9,4512.8,2.5]
[1759558600259,2.70305579,4512.9,4512.8,2.5]
[1759558600561,0.005,4513.4,4512.8,2.5]
[1759558600860,2.21587006,4512.9,4512.8,2.5]
[1759558601156,2.21567367,4513.3,4512.9,0.1104]
[1759558601457,2.21584643,4513.0,4512.9,0.1325587]
[1759558601926,2.21584643,4513.0,4512.9,0.1104]
[1759558602123,2.22063053,4513.4,4512.9,0.1104]
[1759558602324,0.005,4513.4,4512.8,2.5]
[1759558602524,2.2157304,4513.2,4512.8,2.5]
[1759558603048,2.2157304,4513.2,4513.1,0.1104]
[1759558604595,2.21568132,4513.3,4513.1,0.1104]
[1759558605688,0.005,4513.4,4513.2,0.02215722]
[1759558606001,2.22062458,4513.4,4513.3,2.502]
[1759558610386,2.66642458,4513.4,4513.3,2.502]
[1759558610588,0.005,4513.4,4513.3,2.502]
[1759558611307,0.005,4513.4,4513.3,2.9544]
[1759558612009,0.005,4513.4,4513.3,2.502]
[1759558614217,0.005,4513.4,4513.3,2.9544]
[1759558615115,0.005,4513.4,4513.3,2.81069577]
[1759558615317,0.005,4513.4,4513.3,5.66309577]
[1759558616313,0.005,4513.4,4513.3,5.21069577]
[1759558618203,0.005,4513.4,4513.3,2.70869577]
[1759558618426,0.005,4513.4,4513.3,5.20969577]
[1759558619642,0.005,4513.4,4513.3,5.66209577]
[1759558619806,0.005,4513.4,4513.3,5.20969577]
[1759558622206,0.005,4513.4,4513.3,5.9536225]
[1759558622939,0.005,4513.4,4513.3,6.24806827]
[1759558625111,0.005,4513.4,4513.3,7.4400122]
[1759558625707,0.005,4513.4,4513.3,7.14556643]
[1759558625907,0.005,4513.4,4513.3,5.9536225]
[1759558626344,0.005,4513.4,4513.3,5.5012225]
[1759558626932,0.005,4513.4,4513.3,6.24806827]
[1759558627557,0.005,4513.4,4513.3,26.4450982]
[1759558627957,0.005,4513.4,4513.3,25.25315427]
[1759558628162,0.005,4513.4,4513.3,21.37195827]
[1759558628534,0.005,4513.4,4513.3,21.31648427]
[1759558629633,0.005,4513.4,4513.3,21.32202027]
[1759558630672,0.005,4513.4,4513.3,25.25315427]
[1759558630837,0.005,4513.4,4513.3,27.46882794]
[1759558631034,0.005,4513.4,4513.3,24.32202027]
[1759558631268,0.005,4513.4,4513.3,25.25315427]
[1759558631566,0.005,4513.4,4513.3,27.46882794]
[1759558631787,0.005,4513.4,4513.3,25.25315427]
[1759558632269,0.005,4513.4,4513.3,8.46374194]
[1759558632479,0.003,4513.7,4513.6,2.2155264]
[1759558632693,0.003,4513.7,4513.6,25.0439722]
[1759558632895,0.003,4513.7,4513.6,24.7723452]
[1759558633192,0.003,4513.7,4513.6,21.73410297]
[1759558633361,0.003,4513.7,4513.6,23.30568418]
[1759558633552,0.003,4513.7,4513.6,23.30569843]
[1759558633756,0.003,4513.7,4513.6,20.21253443]
[1759558633987,0.003,4513.7,4513.6,18.04391043]
[1759558634333,0.003,4513.7,4513.6,18.60198543]
[1759558634752,0.003,4513.7,4513.6,17.60117299]
[1759558634962,0.003,4513.7,4513.6,4.98528549]
[1759558635256,0.4488,4513.7,4513.6,6.30265603]
[1759558635466,0.003,4513.7,4513.6,8.37230203]
[1759558635655,0.003,4513.7,4513.6,8.36944903]
[1759558635986,0.003,4513.7,4513.6,6.30265603]
[1759558636167,0.4488,4513.7,4513.6,6.30265603]
[1759558636666,0.4488,4513.7,4513.6,3.80265603]
[1759558636870,0.4488,4513.7,4513.6,3.90265603]
[1759558638746,0.4488,4513.7,4513.6,0.1104]
[1759558639081,0.4488,4513.7,4513.6,2.6104]
[1759558642082,2.66427732,4513.7,4513.6,2.6104]
[1759558642327,0.4488,4513.7,4513.6,2.6104]
[1759558642781,2.66427732,4513.7,4513.6,2.6104]
[1759558642977,0.4488,4513.7,4513.6,2.6104]
[1759558643172,2.66427732,4513.7,4513.6,2.6104]
[1759558643373,2.66427732,4513.7,4513.6,0.1104]
[1759558643708,2.66427732,4513.7,4513.6,2.6104]
[1759558644509,0.4488,4513.7,4513.6,2.6104]
[1759558644806,0.003,4513.7,4513.6,2.90484577]
[1759558645324,0.003,4513.7,4513.6,2.6104]
[1759558646238,2.21847732,4513.7,4513.6,2.6104]
[1759558646520,0.003,4513.7,4513.6,2.6104]
[1759558646879,2.21847732,4513.7,4513.6,2.6104]
[1759558647830,2.66237732,4513.7,4513.6,2.6104]
[1759558648384,2.66437732,4513.7,4513.6,2.6104]
[1759558649112,2.66437732,4513.7,4513.6,0.1104]
[1759558649286,2.66437732,4513.7,4513.6,2.6094]
[1759558650005,3.15335432,4513.7,4513.6,2.499]
[1759558650937,2.2155264,4513.6,4513.5,0.001]
[1759558651093,2.2155264,4513.6,4513.5,2.5]
[1759558651424,2.6860264,4513.6,4513.5,2.5]
[1759558654709,2.6860264,4513.6,4513.5,0.001]
[1759558654908,3.17767677,4513.6,4513.5,2.5]
[1759558655936,2.21572276,4513.2,4513.1,0.001]
[1759558656442,2.68622276,4513.2,4513.1,0.001]
[1759558657209,2.68622276,4513.2,4513.1,1.416]
[1759558657443,3.17641026,4513.2,4513.1,1.416]
[1759558657851,3.17641026,4513.2,4513.1,0.001]
[1759558658046,2.21577186,4513.1,4513.0,0.001]
[1759558658450,2.68627186,4513.1,4513.0,0.001]
[1759558658624,3.22549007,4513.1,4513.0,0.001]
[1759558659138,2.21587006,4512.9,4512.8,0.001]
[1759558659528,2.68637006,4512.9,4512.8,0.001]
[1759558660519,2.68637006,4512.9,4512.8,2.502]
[1759558660744,3.45207835,4512.9,4512.8,2.502]
[1759558662576,2.21587006,4512.9,4512.8,2.502]
[1759558662782,2.21587006,4512.9,4512.8,2.9343]
[1759558663089,2.21587006,4512.9,4512.8,2.502]
[1759558666943,2.68637006,4512.9,4512.8,0.001]
[1759558667136,3.17678682,4512.9,4512.8,2.504]
[1759558667786,3.17678682,4512.9,4512.8,2.506]
[1759558668585,3.17678682,4512.9,4512.8,2.505]
[1759558669801,2.21611559,4512.4,4512.2,0.001]
[1759558670088,2.32731559,4512.4,4512.2,0.001]
[1759558670977,2.32731559,4512.4,4512.3,2.506]
[1759558672390,2.77291559,4512.4,4512.3,2.506]
[1759558675717,2.32731559,4512.4,4512.3,2.506]
[1759558676379,2.82621145,4512.4,4512.3,2.506]
[1759558677383,3.27181145,4512.4,4512.3,2.506]
[1759558677575,2.82621145,4512.4,4512.3,2.506]
[1759558677775,2.32731559,4512.4,4512.3,2.506]
[1759558678022,2.21611559,4512.4,4512.3,2.9537]
[1759558680206,2.21611559,4512.4,4512.3,2.506]
[1759558680392,0.1104,4512.7,4512.3,2.9537]
[1759558680796,2.21611559,4512.4,4512.3,2.9537]
[1759558683043,2.21603749,4512.6,4512.3,2.9537]
[1759558683549,2.21611559,4512.4,4512.3,2.9537]
[1759558683758,0.1104,4512.7,4512.3,2.9537]
[1759558684028,0.4476,4513.2,4512.3,2.9537]
[1759558684029,2.21606648,4512.5,4512.4,0.4477]
[1759558684394,2.21606648,4512.5,4512.4,0.5589]
[1759558684592,2.21606648,4512.5,4512.4,0.1112]
[1759558684803,2.21606648,4512.5,4512.4,2.6142]
[1759558685493,2.66166648,4512.5,4512.4,2.6142]
[1759558687098,2.21606648,4512.5,4512.4,2.6142]
[1759558690234,0.002,4512.6,4512.4,2.6142]
[1759558690601,0.002,4512.6,4512.5,0.4477]
[1759558691046,0.002,4512.6,4512.4,2.6142]
[1759558691419,2.21805319,4512.6,4512.4,2.6142]
[1759558692255,2.21801737,4512.6,4512.5,0.1112]
[1759558694016,2.21611559,4512.4,4512.3,0.001]
[1759558694255,2.21611559,4512.4,4512.3,2.504]
[1759558696861,0.002,4512.6,4512.3,2.504]
[1759558696862,2.21606648,4512.5,4512.3,2.504]
[1759558697158,2.21611559,4512.4,4512.3,2.504]
[1759558699380,2.21802396,4512.6,4512.3,2.504]
[1759558699381,0.002,4512.6,4512.3,2.504]
[1759558699745,2.21610692,4512.5,4512.3,2.504]
[1759558701179,0.002,4512.6,4512.3,2.504]
[1759558702442,0.002,4512.6,4512.4,0.60797853]
[1759558702698,0.002,4512.6,4512.4,1.06767853]
[1759558702847,0.002,4512.6,4512.4,0.31353276]
[1759558703048,0.002,4512.6,4512.5,0.29444577]
[1759558703283,0.002,4513.1,4512.5,1.15671738]
[1759558703487,0.002,4513.1,4513.0,0.1104]
[1759558703687,0.002,4513.1,4513.0,3.22137558]
[1759558703894,0.002,4513.1,4513.0,3.68107558]
[1759558704099,0.002,4513.1,4513.0,4.04918314]
[1759558704889,0.002,4513.1,4513.0,6.44918314]
[1759558705067,0.002,4513.6,4513.1,2.4]
[1759558705252,0.002,4513.6,4513.1,8.68837538]
[1759558705456,0.002,4513.6,4513.1,8.32782799]
[1759558706289,0.002,4513.6,4513.1,19.34974399]
[1759558706589,0.002,4513.6,4513.1,17.65688799]
[1759558706901,0.002,4513.6,4513.3,2.4]
[1759558707190,0.002,4513.6,4513.4,4.53642568]
[1759558707488,0.002,4513.6,4513.4,10.12277538]
[1759558707682,0.002,4513.6,4513.5,5.118051]
[1759558707990,0.002,4513.6,4513.5,3.197798]
[1759558708190,0.002,4513.6,4513.5,3.237961]
[1759558708393,0.002,4513.6,4513.5,3.585572]
[1759558708694,0.002,4513.6,4513.5,4.4344292]
[1759558708909,0.002,4513.6,4513.5,4.0882482]
[1759558710091,0.002,4513.6,4513.5,3.6419482]
[1759558710255,0.002,4513.6,4513.5,3.7060692]
[1759558710857,0.002,4513.6,4513.5,0.8488572]
[1759558711395,0.002,4513.6,4513.5,2.502]
[1759558712589,0.002,4513.6,4513.5,8.135474]
[1759558712794,0.002,4513.6,4513.5,5.435117]
[1759558713173,0.002,4513.6,4513.5,4.988817]
[1759558713495,0.002,4513.6,4513.5,2.502]
[1759558713669,0.002,4513.6,4513.5,3.08129954]
[1759558714065,0.4338,4513.6,4513.5,3.08129954]
[1759558715180,0.4338,4513.6,4513.5,2.6124]
[1759558715495,0.002,4513.6,4513.5,3.64451738]
[1759558715695,0.002,4513.6,4513.5,2.6124]
[1759558716081,0.002,4513.6,4513.5,0.1104]
[1759558716256,0.002,4513.6,4513.5,2.6124]
[1759558716462,0.002,4513.6,4513.5,2.91840787]
[1759558719442,0.002,4513.6,4513.5,15.04181887]
[1759558719736,0.002,4513.6,4513.5,14.20572487]
[1759558720138,0.002,4513.6,4513.5,14.50017064]
[1759558720437,0.002,4513.6,4513.5,13.32199287]
[1759558720937,0.002,4513.6,4513.5,10.23347544]
[1759558721138,0.002,4513.6,4513.5,10.67977544]
[1759558721701,0.01,4513.9,4513.5,13.66559282]
[1759558721905,0.01,4513.9,4513.7,2.4]
[1759558722100,0.01,4513.9,4513.8,5.0114]
[1759558722330,0.01,4513.9,4513.8,2.5104]
[1759558722514,0.01,4513.9,4513.8,5.4577]
[1759558722841,0.01,4513.9,4513.8,6.20831334]
[1759558723345,0.01,4513.9,4513.8,5.76201334]
[1759558723550,0.01,4513.9,4513.8,6.20831334]
[1759558723733,0.01,4513.9,4513.8,5.76201334]
[1759558724743,0.01,4513.9,4513.8,6.20831334]
[1759558724948,0.01,4513.9,4513.8,6.29693469]
[1759558725244,0.002,4514.1,4513.8,6.88275207]
[1759558725450,0.002,4514.1,4513.9,1.72039259]
[1759558725748,0.002,4514.1,4514.0,2.501]
[1759558726746,0.002,4514.1,4513.9,0.68827521]
[1759558726956,0.002,4514.1,4514.0,2.501]
[1759558728633,0.002,4514.1,4514.0,3.55527068]
[1759558728815,0.002,4514.1,4514.0,3.10897068]
[1759558729020,0.002,4514.1,4514.0,2.5231533]
[1759558729843,0.002,4514.1,4514.0,2.501]
[1759558730040,0.002,4514.1,4514.0,2.7511]
[1759558730346,0.002,4514.1,4514.0,3.04247161]
[1759558730557,0.002,4514.1,4514.0,3.2055]
[1759558730728,0.002,4514.1,4514.0,3.1829]
[1759558731053,0.002,4514.1,4514.0,2.7511]
[1759558732847,0.002,4514.1,4514.0,5.1511]
[1759558734464,0.002,4514.1,4514.0,5.1501]
[1759558734768,0.4349,4514.1,4514.0,5.1501]
[1759558735173,0.002,4514.1,4514.0,2.4]
[1759558735340,0.002,4514.1,4514.0,4.9]
[1759558737979,0.002,4514.1,4514.0,5.0104]
[1759558741961,0.002,4514.1,4514.0,9.87974538]
[1759558742264,0.002,4514.1,4514.0,11.03152286]
[1759558742867,0.002,4514.1,4514.0,12.66855232]
[1759558743197,0.002,4514.1,4514.0,11.91970655]
[1759558743884,0.002,4514.1,4514.0,9.51970655]
[1759558744396,0.002,4514.1,4514.0,6.99470594]
[1759558744559,0.002,4514.1,4514.0,5.81207648]
[1759558745256,0.002,4514.1,4514.0,6.99470594]
[1759558746293,0.002,4514.1,4514.0,9.39470594]
[1759558748189,0.002,4514.1,4514.0,8.66647648]
[1759558748383,0.002,4514.1,4514.0,9.85177551]
[1759558748878,0.002,4514.1,4514.0,9.39737551]
[1759558749080,0.002,4514.1,4514.0,8.21207648]
[1759558754802,0.002,4514.1,4514.0,5.71207648]
[1759558755016,0.4349,4514.1,4514.0,6.19620247]
[1759558756014,0.002,4514.1,4514.0,6.19620247]
[1759558758115,0.4349,4514.1,4514.0,3.69620247]
[1759558758308,0.4349,4514.1,4514.0,6.19620247]
[1759558760610,0.4349,4514.1,4514.0,3.69620247]
[1759558760804,0.4349,4514.1,4514.0,6.19520247]
[1759558762116,0.002,4514.1,4514.0,6.19520247]
[1759558762321,0.4651,4514.1,4514.0,6.81482272]
[1759558762703,0.4651,4514.1,4514.0,5.62902025]
[1759558763021,0.002,4514.1,4514.0,5.62902025]
[1759558763791,0.002,4514.1,4514.0,6.81531424]
[1759558764139,0.002,4514.1,4514.0,6.8153079]
[1759558764487,0.002,4514.1,4514.0,3.69668765]
[1759558764688,0.4651,4514.1,4514.0,0.1104]
[1759558764993,0.4651,4514.1,4514.0,2.6094]
[1759558768251,2.680381,4514.1,4514.0,2.6094]
[1759558768450,3.1699385,4514.1,4514.0,0.1104]
[1759558768738,3.1699385,4514.1,4514.0,2.5]
[1759558772218,2.21537916,4513.9,4513.8,0.1114]
[1759558772522,2.75391093,4513.9,4513.8,2.6114]
[1759558772830,3.21741093,4513.9,4513.8,2.6114]
[1759558774152,3.21741093,4513.9,4513.8,2.501]
[1759558775422,3.21741093,4513.9,4513.8,0.001]
[1759558775624,3.21741093,4513.9,4513.8,2.503]
[1759558779255,0.53853177,4513.9,4513.8,2.503]
[1759558779462,2.21537916,4513.9,4513.8,2.503]
[1759558779980,2.67887916,4513.9,4513.8,2.503]
[1759558782248,2.21537916,4513.9,4513.8,2.503]